bitfinex/quotes_SOLUSD_20250316
["timestamp","ask_amount","ask_price","bid_price","bid_amount"]
[1742153177947,8.82,127.5,127.43,27.00270487]
[1742153178276,27.00270487,127.47,127.42,27.00270487]
[1742153178645,67.3746,127.5,127.41,18.933972]
[1742153178851,53.27730487,127.5,127.45,27.00270487]
[1742153179247,27.00270487,127.49,127.45,27.00270487]
[1742153182363,27.03270487,127.51,127.47,27.00270487]
[1742153182555,27.03270487,127.51,127.46,27.00270487]
[1742153183170,27.00270487,127.5,127.46,27.00270487]
[1742153183467,27.00270487,127.5,127.46,33.27910487]
[1742153185470,27.03270487,127.51,127.46,33.27910487]
[1742153185667,0.03,127.51,127.47,27.00270487]
[1742153185876,0.03,127.51,127.48,27.00270487]
[1742153186572,0.03,127.51,127.5,27.00270487]
[1742153187369,0.03,127.51,127.5,33.27720487]
[1742153190369,0.03,127.51,127.5,6.2745]
[1742153190685,0.03,127.51,127.48,4.00541519]
[1742153190997,0.03,127.51,127.48,27.00270487]
[1742153191282,0.03,127.51,127.46,27.00270487]
[1742153191283,6.879,127.51,127.46,27.00270487]
[1742153191486,0.03,127.51,127.48,27.00270487]
[1742153191654,0.03,127.51,127.49,27.00270487]
[1742153192077,0.03,127.51,127.5,27.00270487]
[1742153192289,0.03,127.51,127.5,33.27720487]
[1742153193084,0.03,127.51,127.5,6.2745]
[1742153193294,0.03,127.51,127.5,23.09874701]
[1742153196770,0.03,127.51,127.5,23.38307015]
[1742153203473,0.03,127.51,127.5,6.55882314]
[1742153203660,0.03,127.51,127.49,3.83911026]
[1742153203988,0.03,127.51,127.49,16.82424701]
[1742153204164,0.03,127.51,127.49,23.09904701]
[1742153204559,0.03,127.51,127.5,16.82424701]
[1742153204763,0.03,127.51,127.5,23.09874701]
[1742153206585,0.03,127.51,127.49,3.95928312]
[1742153206792,23.12824701,127.51,127.47,17.10857015]
[1742153207083,0.03,127.51,127.48,16.82424701]
[1742153207276,0.03,127.51,127.49,16.82424701]
[1742153207478,0.03,127.51,127.5,16.82424701]
[1742153207879,0.03,127.51,127.5,17.10857015]
[1742153208596,0.03,127.51,127.5,33.93281716]
[1742153208772,0.03,127.51,127.5,58.85696602]
[1742153209588,0.03,127.51,127.5,370.85696602]
[1742153212788,0.03,127.51,127.5,58.85696602]
[1742153215693,0.03,127.54,127.51,18.933972]
[1742153215881,0.03,127.54,127.53,17.10857015]
[1742153217298,0.03,127.54,127.53,23.38157015]
[1742153218100,0.0001,127.55,127.54,0.28432314]
[1742153218391,0.03,127.59,127.58,0.14216157]
[1742153218577,0.03,127.59,127.58,37.10857015]
[1742153218984,0.03,127.61,127.58,55.75821901]
[1742153219292,6.9439,127.69,127.64,0.28432314]
[1742153219601,6.9439,127.69,127.66,16.82424701]
[1742153219896,6.9439,127.69,127.64,0.14216157]
[1742153219897,33.79870373,127.72,127.67,16.82424701]
[1742153220100,16.97445672,127.72,127.67,16.82424701]
[1742153220402,16.97445672,127.72,127.67,17.10857015]
[1742153220574,16.97445672,127.72,127.67,33.33309793]
[1742153220774,27.09334701,127.73,127.67,33.33309793]
[1742153220969,16.82424701,127.73,127.68,0.28432314]
[1742153221195,6.2623,127.75,127.69,16.82424701]
[1742153221397,6.2623,127.75,127.67,5.40187599]
[1742153221697,38.64964886,127.71,127.7,12.24539163]
[1742153221898,47.42964886,127.71,127.7,8.64499163]
[1742153222279,53.07946646,127.71,127.7,8.64499163]
[1742153222802,53.07946646,127.71,127.63,113.18068134]
[1742153222803,18.64964886,127.7,127.63,16.82424701]
[1742153222973,16.82424701,127.68,127.63,16.82424701]
[1742153223170,16.82424701,127.69,127.64,16.82424701]
[1742153223575,6.2646,127.7,127.63,17.10857015]
[1742153223576,16.82424701,127.68,127.63,17.10857015]
[1742153223791,16.82424701,127.68,127.64,16.82424701]
[1742153224394,16.82424701,127.69,127.64,16.82424701]
[1742153224574,16.82424701,127.68,127.63,16.82424701]
[1742153224976,16.82424701,127.67,127.63,16.82424701]
[1742153225493,16.82424701,127.66,127.61,17.10857015]
[1742153225699,16.82424701,127.66,127.62,16.82424701]
[1742153226687,16.82424701,127.66,127.61,16.82424701]
[1742153227287,23.09094701,127.66,127.61,16.82424701]
[1742153227884,16.82424701,127.65,127.61,16.82424701]
[1742153228202,16.82424701,127.65,127.6,3.95776085]
[1742153228203,16.82424701,127.68,127.64,16.82424701]
[1742153228497,16.82424701,127.67,127.63,16.82424701]
[1742153228695,16.82424701,127.66,127.6,3.95776085]
[1742153228897,90.45644886,127.7,127.61,16.82424701]
[1742153228898,16.82424701,127.65,127.61,16.82424701]
[1742153229095,16.82424701,127.66,127.61,16.82424701]
[1742153229296,36.82424701,127.67,127.63,16.82424701]
[1742153229497,43.09064701,127.67,127.63,16.82424701]
[1742153230113,43.09064701,127.67,127.62,16.82424701]
[1742153230281,16.82424701,127.66,127.61,16.96640858]
[1742153230688,43.09064701,127.67,127.62,16.82424701]
[1742153231993,26.2664,127.67,127.63,16.82424701]
[1742153232526,26.2664,127.67,127.61,0.14216157]
[1742153232527,20.0,127.67,127.64,16.82424701]
[1742153232902,20.0,127.67,127.63,16.82424701]
[1742153233102,26.2661,127.67,127.63,41.31503028]
[1742153233405,16.82424701,127.68,127.63,41.31503028]
[1742153233603,16.82424701,127.67,127.62,16.82424701]
[1742153233804,16.82424701,127.66,127.6,0.14216157]
[1742153234012,16.82424701,127.63,127.59,52.04551786]
[1742153235709,16.82424701,127.63,127.59,3.8673007]
[1742153235988,23.09234701,127.63,127.58,16.96640858]
[1742153236282,23.09234701,127.63,127.58,23.23690858]
[1742153236488,23.09194701,127.64,127.59,16.82424701]
[1742153237205,16.82424701,127.62,127.58,3.96489552]
[1742153237527,6.2677,127.64,127.59,16.82424701]
[1742153237528,23.09194701,127.64,127.59,16.82424701]
[1742153237896,23.09194701,127.64,127.59,23.09414701]
[1742153238404,31.85144701,127.65,127.6,16.82424701]
[1742153238800,15.0272,127.65,127.61,16.82424701]
[1742153239318,8.76,127.65,127.61,16.82424701]
[1742153239622,23.09054701,127.67,127.62,16.82424701]
[1742153239911,23.09054701,127.67,127.59,6.27]
[1742153239912,16.82424701,127.65,127.6,16.82424701]
[1742153240116,16.82424701,127.64,127.59,335.09424701]
[1742153240300,16.82424701,127.64,127.59,328.82424701]
[1742153240502,16.82424701,127.64,127.59,16.82424701]
[1742153241189,16.82424701,127.65,127.6,16.82424701]
[1742153241389,16.82424701,127.65,127.6,23.09364701]
[1742153241889,16.82424701,127.66,127.62,16.82424701]
[1742153242384,16.82424701,127.67,127.63,17.10857015]
[1742153242588,23.08884701,127.7,127.65,16.82424701]
[1742153243111,6.2646,127.7,127.66,16.82424701]
[1742153243310,23.08844701,127.71,127.66,16.82424701]
[1742153244597,16.82424701,127.7,127.66,16.82424701]
[1742153245009,23.08844701,127.71,127.66,16.82424701]
[1742153245517,16.82424701,127.68,127.63,26.83757015]
[1742153246327,16.82424701,127.67,127.62,10.73494134]
[1742153246534,21.9246,127.71,127.62,3.86564134]
[1742153246535,16.82424701,127.66,127.62,3.86564134]
[1742153246827,16.82424701,127.66,127.61,23.09324701]
[1742153247725,23.09104701,127.66,127.61,23.09324701]
[1742153248114,6.2662,127.67,127.63,16.82424701]
[1742153248299,23.09004701,127.68,127.64,16.82424701]
[1742153248702,23.09004701,127.68,127.63,16.82424701]
[1742153249101,23.12004701,127.68,127.63,16.82424701]
[1742153249300,16.82424701,127.67,127.6,3.60306157]
[1742153249501,6.2958,127.68,127.61,16.82424701]
[1742153249502,16.82424701,127.66,127.61,16.82424701]
[1742153249709,16.82424701,127.66,127.61,16.32424701]
[1742153250626,23.09114701,127.66,127.61,16.32424701]
[1742153251127,15.6941,127.68,127.61,16.32424701]
[1742153251128,23.09044701,127.67,127.62,16.82424701]
[1742153251300,16.85424701,127.68,127.64,16.82424701]
[1742153251506,23.11994701,127.68,127.64,16.82424701]
[1742153251706,6.2957,127.68,127.64,16.82424701]
[1742153251927,0.03,127.68,127.65,16.82424701]
[1742153252808,0.03,127.68,127.66,16.82424701]
[1742153253519,0.03,127.68,127.65,16.82424701]
[1742153253719,0.03,127.68,127.64,16.82424701]
[1742153255929,16.85424701,127.68,127.63,16.82424701]
[1742153256332,16.82424701,127.65,127.6,217.31452314]
[1742153256534,16.82424701,127.65,127.61,16.82424701]
[1742153256737,16.85424701,127.68,127.6,217.31452314]
[1742153256738,16.82424701,127.66,127.62,16.82424701]
[1742153258131,23.09124701,127.66,127.61,16.82424701]
[1742153258433,23.09124701,127.66,127.6,13.88405292]
[1742153258735,23.09124701,127.66,127.61,16.82424701]
[1742153259114,6.267,127.66,127.62,16.82424701]
[1742153260048,6.267,127.66,127.6,7.33042978]
[1742153260330,16.82424701,127.61,127.58,0.063]
[1742153261227,20.0,127.63,127.58,0.063]
[1742153261629,20.0,127.63,127.58,16.88724701]
[1742153261630,11.9398008,127.62,127.58,16.88724701]
[1742153261823,28.76404781,127.62,127.58,0.063]
[1742153262029,16.82424701,127.61,127.58,0.063]
[1742153262226,16.82424701,127.6,127.58,0.063]
[1742153262424,16.82424701,127.59,127.58,0.063]
[1742153262938,16.82424701,127.6,127.58,0.063]
[1742153263137,16.82424701,127.59,127.58,0.063]
[1742153263328,53.17554781,127.62,127.58,0.063]
[1742153263329,16.82424701,127.6,127.58,0.063]
[1742153264518,16.82424701,127.61,127.58,0.063]
[1742153264722,8.74,127.62,127.58,16.88724701]
[1742153265137,36.82424701,127.63,127.58,16.88724701]
[1742153265344,16.82424701,127.63,127.58,16.88724701]
[1742153266648,22.49426255,127.62,127.58,0.063]
[1742153269252,30.01724701,127.67,127.62,16.82424701]
[1742153269430,16.82424701,127.66,127.62,16.82424701]
[1742153269930,30.01724701,127.67,127.62,16.82424701]
[1742153270335,23.75084701,127.67,127.62,23.09274701]
[1742153270530,5.67424778,127.66,127.62,23.09274701]
[1742153270743,5.67424778,127.66,127.63,16.82424701]
[1742153270936,5.67424778,127.66,127.62,23.09274701]
[1742153271243,16.82424701,127.64,127.59,20.38654701]
[1742153271456,16.82424701,127.63,127.58,16.88724701]
[1742153271628,23.09184701,127.64,127.59,16.82424701]
[1742153271943,22.49849479,127.63,127.58,16.88724701]
[1742153272322,5.67424778,127.63,127.59,16.82424701]
[1742153272536,5.67424778,127.63,127.6,16.82424701]
[1742153273239,5.67424778,127.63,127.61,16.82424701]
[1742153273639,5.67424778,127.63,127.62,16.82424701]
[1742153274141,5.67424778,127.63,127.6,16.82424701]
[1742153274339,16.82424701,127.64,127.58,10.35319264]
[1742153274547,23.09184701,127.64,127.59,23.09404701]
[1742153274864,16.82424701,127.62,127.58,0.063]
[1742153275147,16.82424701,127.6,127.58,0.063]
[1742153275349,16.82424701,127.61,127.58,0.063]
[1742153275749,16.82424701,127.6,127.58,0.063]
[1742153276141,16.82424701,127.59,127.58,0.063]
[1742153276755,6.27,127.59,127.58,0.063]
[1742153277350,8.74,127.62,127.58,0.063]
[1742153277548,15.0087,127.62,127.58,16.88724701]
[1742153278947,31.83294701,127.62,127.58,0.063]
[1742153279830,23.09134701,127.65,127.6,16.82424701]
[1742153280459,5.66898984,127.64,127.6,16.82424701]
[1742153280941,11.93688984,127.64,127.6,16.82424701]
[1742153281458,5.66898984,127.64,127.6,6.2695]
[1742153281641,5.66898984,127.64,127.62,16.82424701]
[1742153281841,5.66898984,127.63,127.62,16.82424701]
[1742153282067,5.66898984,127.63,127.61,16.82424701]
[1742153283247,6.2671,127.65,127.61,26.87077544]
[1742153284040,6.2671,127.65,127.59,13.46946157]
[1742153284249,26.87077544,127.63,127.58,30.49607544]
[1742153284975,26.87077544,127.63,127.61,0.063]
[1742153285476,26.87077544,127.62,127.61,0.063]
[1742153285779,35.64077544,127.64,127.61,0.063]
[1742153286077,11.93293158,127.62,127.61,0.063]
[1742153287363,6.2686,127.62,127.61,0.063]
[1742153287671,41.90877544,127.64,127.61,0.063]
[1742153287870,15.038,127.64,127.61,0.063]
[1742153288373,5.66415623,127.63,127.61,0.063]
[1742153289052,5.66415623,127.63,127.61,26.93377544]
[1742153289255,5.66415623,127.63,127.62,26.87077544]
[1742153289448,0.03,127.64,127.61,0.063]
[1742153289672,6.2976,127.64,127.61,0.063]
[1742153290174,33.16837544,127.64,127.61,0.063]
[1742153290353,73.88371245,127.62,127.61,0.063]
[1742153290555,73.74155088,127.62,127.61,0.0001]
[1742153290746,65.5204243,127.62,127.61,0.0001]
[1742153291972,71.18465445,127.62,127.61,0.0001]
[1742153292473,58.80360559,127.62,127.61,0.0001]
[1742153292666,31.93283015,127.62,127.61,0.0001]
[1742153292844,58.80360559,127.62,127.61,0.0001]
[1742153293454,67.52360559,127.62,127.61,0.0001]
[1742153294066,58.80360559,127.62,127.61,0.0001]
[1742153294268,67.52360559,127.62,127.61,0.0001]
[1742153296271,86.17325445,127.62,127.61,0.0001]
[1742153296970,86.31541602,127.62,127.61,0.0001]
[1742153297178,113.18619146,127.62,127.61,0.0001]
[1742153297652,86.31541602,127.62,127.61,0.0001]
[1742153299674,113.18619146,127.62,127.61,0.0001]
[1742153300086,113.32835303,127.62,127.61,0.0001]
[1742153301672,116.84475303,127.62,127.61,0.0001]
[1742153302664,38.64964886,127.59,127.58,0.063]
[1742153303175,20.0,127.59,127.58,0.063]
[1742153303575,26.27,127.59,127.58,0.063]
[1742153303778,31.93423015,127.59,127.58,0.063]
[1742153304779,11.93423015,127.59,127.58,0.063]
[1742153305285,28.74694354,127.59,127.58,0.063]
[1742153305481,11.93423015,127.59,127.58,0.063]
[1742153305981,28.74694354,127.59,127.58,0.063]
[1742153309461,47.3965924,127.59,127.58,0.063]
[1742153311289,88.63875397,127.59,127.58,0.063]
[1742153312863,88.78091554,127.59,127.58,0.063]
[1742153313065,55.46236225,127.57,127.56,0.063]
[1742153313897,61.1265924,127.57,127.56,0.063]
[1742153314867,67.3975924,127.57,127.56,0.063]
[1742153315571,67.53975397,127.57,127.56,0.063]
[1742153315777,67.3975924,127.57,127.56,0.063]
[1742153315977,5.66423015,127.57,127.56,0.063]
[1742153317088,5.66423015,127.57,127.56,16.87571339]
[1742153317289,6.2701,127.59,127.56,0.063]
[1742153317493,6.2696,127.6,127.56,16.87571339]
[1742153318181,23.08231339,127.6,127.56,0.063]
[1742153318381,5.66722617,127.59,127.56,0.063]
[1742153318587,28.75013956,127.59,127.56,0.063]
[1742153318772,16.95487496,127.57,127.56,0.063]
[1742153318985,44.18236225,127.57,127.56,0.063]
[1742153319281,20.0,127.52,127.48,0.063]
[1742153319488,18.64964886,127.51,127.48,0.063]
[1742153319690,49.82,127.52,127.48,16.87571339]
[1742153320687,56.0935,127.52,127.48,16.87571339]
[1742153320871,6.272,127.55,127.51,16.81271339]
[1742153321068,41.1,127.57,127.52,16.81271339]
[1742153321069,41.73356225,127.57,127.52,16.81271339]
[1742153321270,20.0,127.5,127.48,0.063]
[1742153321495,8.72,127.52,127.48,0.063]
[1742153322275,26.91013709,127.51,127.48,0.063]
[1742153322801,18.64964886,127.54,127.49,26.91013709]
[1742153322802,33.18263709,127.54,127.49,26.91013709]
[1742153322988,6.2725,127.54,127.49,26.91013709]
[1742153323190,6.2725,127.54,127.5,26.91013709]
[1742153323575,8.72,127.56,127.51,26.91013709]
[1742153323778,8.72,127.56,127.52,3.5862]
[1742153323779,41.90173709,127.56,127.52,3.5862]
[1742153323979,26.91013709,127.55,127.52,3.5862]
[1742153324182,26.91013709,127.54,127.52,3.5862]
[1742153324498,30.6704,127.56,127.52,3.5862]
[1742153324702,33.18313709,127.53,127.49,3.5862]
[1742153324904,26.91013709,127.52,127.49,3.5862]
[1742153325199,6.273,127.53,127.49,3.5862]
[1742153325493,33.18313709,127.53,127.49,3.5862]
[1742153325695,6.273,127.53,127.49,30.49633709]
[1742153326799,6.2725,127.54,127.5,26.91013709]
[1742153327708,6.2725,127.54,127.49,3.5862]
[1742153327709,6.2715,127.56,127.52,26.91013709]
[1742153328506,33.18163709,127.56,127.51,26.91013709]
[1742153328697,15.6788,127.57,127.51,26.91013709]
[1742153328895,26.91013709,127.56,127.51,26.91013709]
[1742153329195,26.91013709,127.53,127.49,3.5862]
[1742153329704,26.91013709,127.54,127.49,30.49633709]
[1742153330087,26.91013709,127.53,127.49,3.5862]
[1742153330806,18.64964886,127.49,127.45,0.063]
[1742153331101,18.79181043,127.45,127.43,0.0001]
[1742153331296,59.74964886,127.44,127.43,0.0001]
[1742153331998,41.1,127.44,127.43,0.0001]
[1742153332194,68.01013709,127.44,127.43,0.0001]
[1742153332378,41.1,127.44,127.43,0.0001]
[1742153333682,68.01013709,127.44,127.43,0.0001]
[1742153334104,41.1,127.44,127.43,0.0001]
[1742153334298,26.91013709,127.45,127.43,0.0001]
[1742153334885,27.34964886,127.48,127.43,0.0001]
[1742153335084,26.91013709,127.45,127.43,0.0001]
[1742153335281,45.55978595,127.44,127.43,0.0001]
[1742153335485,72.46992304,127.44,127.43,0.0001]
[1742153337106,78.74732304,127.44,127.43,0.0001]
[1742153337288,43.86432314,127.4,127.37,0.063]
[1742153337493,0.14216157,127.35,127.3,3.5605]
[1742153337811,26.91013709,127.34,127.29,26.97313709]
[1742153337985,26.91013709,127.34,127.29,0.063]
[1742153338386,18.64964886,127.36,127.29,0.063]
[1742153338607,26.91013709,127.34,127.29,0.063]
[1742153339105,6.2819,127.35,127.29,0.063]
[1742153339309,26.91013709,127.33,127.29,0.063]
[1742153339497,26.91013709,127.34,127.29,26.97313709]
[1742153339698,26.91013709,127.3,127.29,0.063]
[1742153340585,18.64964886,127.31,127.29,0.063]
[1742153340792,26.91013709,127.3,127.29,0.063]
[1742153341180,33.19443709,127.3,127.29,0.063]
[1742153341400,6.2843,127.3,127.29,0.063]
[1742153341582,33.19443709,127.3,127.29,0.063]
[1742153341788,91.41930909,127.3,127.24,0.063]
[1742153342023,26.91013709,127.26,127.24,0.063]
[1742153342310,26.91013709,127.27,127.24,0.063]
[1742153343116,41.1,127.29,127.24,0.063]
[1742153343301,26.91013709,127.27,127.24,0.063]
[1742153343494,6.2848,127.29,127.24,0.063]
[1742153343709,26.91013709,127.27,127.24,0.063]
[1742153344090,6.2848,127.29,127.24,0.063]
[1742153344298,26.91013709,127.28,127.24,0.063]
[1742153344491,26.91013709,127.29,127.24,26.97313709]
[1742153344711,26.91013709,127.26,127.24,0.063]
[1742153345486,26.91013709,127.26,127.16,0.03]
[1742153345487,42.513972,127.22,127.16,0.03]
[1742153345710,45.84410909,127.18,127.16,0.03]
[1742153345991,41.1,127.2,127.16,0.03]
[1742153346603,26.91013709,127.18,127.16,0.03]
[1742153347325,27.633972,127.21,127.16,0.03]
[1742153347326,40.60322763,127.2,127.16,0.03]
[1742153347626,83.11719963,127.18,127.16,0.03]
[1742153347794,0.14216157,127.17,127.13,0.03]
[1742153347995,27.34964886,127.16,127.13,0.03]
[1742153348199,40.60322763,127.14,127.13,0.03]
[1742153348417,27.34964886,127.16,127.13,0.03]
[1742153348418,68.44964886,127.16,127.13,0.03]
[1742153348715,59.25287649,127.14,127.13,0.03]
[1742153348917,99.85610412,127.14,127.13,0.03]
[1742153349215,40.60322763,127.14,127.13,0.03]
[1742153349390,49.8,127.16,127.13,0.03]
[1742153349590,90.40322763,127.16,127.13,0.03]
[1742153349993,49.8,127.16,127.13,40.63322763]
[1742153350526,40.60322763,127.18,127.13,40.63322763]
[1742153350527,27.34964886,127.2,127.14,40.60322763]
[1742153350698,40.60322763,127.19,127.14,40.60322763]
[1742153351099,8.7,127.2,127.15,40.60322763]
[1742153351600,81.70322763,127.21,127.15,40.60322763]
[1742153352221,81.70322763,127.21,127.16,40.60322763]
[1742153352522,40.60322763,127.2,127.15,40.60322763]
[1742153353020,18.64964886,127.22,127.16,40.60322763]
[1742153353228,40.60322763,127.21,127.16,40.60322763]
[1742153353404,67.95287649,127.22,127.16,40.60322763]
[1742153353599,67.95287649,127.22,127.17,40.60322763]
[1742153354230,40.60322763,127.21,127.16,40.60322763]
[1742153354429,27.34964886,127.22,127.16,40.60322763]
[1742153354728,40.60322763,127.21,127.16,46.89422763]
[1742153355402,81.70322763,127.23,127.18,40.60322763]
[1742153356019,40.60322763,127.23,127.18,40.60322763]
[1742153356400,40.60322763,127.22,127.17,50.82932763]
[1742153356605,40.60322763,127.23,127.18,46.89342763]
[1742153357217,40.60322763,127.22,127.18,6.2902]
[1742153357602,40.88755077,127.26,127.19,40.60322763]
[1742153357603,0.28432314,127.26,127.19,40.60322763]
[1742153357918,0.28432314,127.26,127.18,46.89342763]
[1742153357919,40.60322763,127.23,127.18,46.89342763]
[1742153358310,40.60322763,127.22,127.18,6.2902]
[1742153358525,40.60322763,127.23,127.18,6.2902]
[1742153359136,40.60322763,127.23,127.18,46.89342763]
[1742153362540,59.25287649,127.24,127.2,6.2893]
[1742153363827,40.60322763,127.24,127.2,6.2893]
[1742153364926,81.70322763,127.25,127.2,46.89252763]
[1742153365126,40.60322763,127.25,127.2,46.89252763]
[1742153366041,40.60322763,127.24,127.19,46.89282763]
[1742153366343,18.64964886,127.26,127.17,10.2261]
[1742153366344,40.60322763,127.21,127.17,10.2261]
[1742153366513,47.67122314,127.25,127.17,50.82932763]
[1742153366514,40.60322763,127.22,127.17,50.82932763]
[1742153366711,40.60322763,127.21,127.17,10.2261]
[1742153366936,40.60322763,127.2,127.17,10.2261]
[1742153367130,35.76122325,127.22,127.17,37.28732325]
[1742153367837,8.7,127.22,127.18,27.06122325]
[1742153368015,27.06122325,127.21,127.17,10.2261]
[1742153368736,35.76122325,127.22,127.17,43.57792325]
[1742153369327,35.82422325,127.22,127.17,43.57792325]
[1742153370627,8.763,127.22,127.17,43.57792325]
[1742153370942,8.763,127.22,127.18,27.06122325]
[1742153372141,8.763,127.22,127.19,6.2898]
[1742153372543,27.06122325,127.2,127.16,0.03]
[1742153372841,27.06122325,127.17,127.16,0.03]
[1742153374337,33.35192325,127.17,127.16,0.03]
[1742153375171,27.06122325,127.17,127.16,0.03]
[1742153375838,74.45112325,127.19,127.16,0.03]
[1742153376145,68.16122325,127.19,127.16,0.03]
[1742153376543,74.45112325,127.19,127.16,0.03]
[1742153378550,33.35192325,127.17,127.16,0.03]
[1742153379841,6.2907,127.17,127.16,0.03]
[1742153380544,33.35192325,127.17,127.16,0.03]
[1742153382047,6.2907,127.17,127.16,0.03]
[1742153382233,6.2898,127.19,127.16,0.03]
[1742153382937,5.62240748,127.18,127.16,0.03]
[1742153384134,5.62240748,127.17,127.16,0.03]
[1742153384846,5.62240748,127.17,127.16,33.75972325]
[1742153385726,5.62240748,127.2,127.16,33.75972325]
[1742153386638,5.62240748,127.2,127.17,27.06122325]
[1742153386840,5.62240748,127.2,127.18,3.5477]
[1742153387255,27.12422325,127.22,127.18,3.5477]
[1742153387673,27.12422325,127.22,127.19,27.06122325]
[1742153387674,0.063,127.22,127.19,27.06122325]
[1742153387865,0.063,127.22,127.2,27.06122325]
[1742153388157,0.063,127.22,127.19,27.06122325]
[1742153388849,0.063,127.22,127.19,33.35052325]
[1742153389260,0.063,127.22,127.2,27.06122325]
[1742153389447,0.063,127.22,127.21,27.06122325]
[1742153390339,33.34652325,127.28,127.22,6.8759]
[1742153390658,33.34652325,127.28,127.23,27.06122325]
[1742153390860,33.34652325,127.28,127.23,33.34892325]
[1742153391047,5.65343627,127.27,127.23,33.34892325]
[1742153391642,5.65343627,127.27,127.25,27.06122325]
[1742153392056,0.063,127.3,127.26,27.06122325]
[1742153392239,0.063,127.3,127.27,27.06122325]
[1742153392433,0.063,127.3,127.28,27.06122325]
[1742153392953,0.063,127.3,127.28,33.34642325]
[1742153394271,0.063,127.3,127.29,37.62698482]
[1742153394952,0.063,127.3,127.29,43.91178482]
[1742153395150,0.063,127.35,127.32,27.06122325]
[1742153395352,0.063,127.35,127.31,27.06122325]
[1742153395854,27.12422325,127.35,127.3,27.06122325]
[1742153396050,27.06122325,127.34,127.29,355.91178482]
[1742153396245,27.06122325,127.33,127.29,322.4236]
[1742153396470,27.06122325,127.31,127.29,3.5477]
[1742153396644,27.06122325,127.3,127.26,10.4236]
[1742153397140,27.06122325,127.3,127.26,16.7098]
[1742153397542,27.06122325,127.31,127.26,43.77102325]
[1742153398056,33.34402325,127.33,127.27,27.06122325]
[1742153398247,27.06122325,127.32,127.27,27.06122325]
[1742153398639,27.06122325,127.33,127.27,27.06122325]
[1742153398845,27.06122325,127.33,127.28,27.06122325]
[1742153399047,27.06122325,127.32,127.27,0.14216157]
[1742153399247,27.06122325,127.31,127.26,37.48482325]
[1742153399447,27.06122325,127.3,127.26,10.4236]
[1742153400355,6.2828,127.33,127.26,43.77102325]
[1742153400556,27.06122325,127.31,127.26,37.48482325]
[1742153400772,27.06122325,127.3,127.26,10.4236]
[1742153401069,27.06122325,127.29,127.26,10.4236]
[1742153401264,27.06122325,127.3,127.26,10.4236]
[1742153402176,27.06122325,127.31,127.26,43.77112325]
[1742153403070,27.06122325,127.3,127.25,27.06122325]
[1742153403273,27.06122325,127.26,127.23,3.3572]
[1742153403577,27.06122325,127.25,127.21,208.02]
[1742153404273,49.78,127.29,127.21,241.36992325]
[1742153404274,27.06122325,127.26,127.21,241.36992325]
[1742153405197,27.06122325,127.26,127.21,235.08122325]
[1742153405382,27.06122325,127.26,127.21,241.36992325]
[1742153406582,27.06122325,127.26,127.21,33.34992325]
[1742153407083,27.06122325,127.25,127.2,37.38842325]
[1742153407384,27.06122325,127.21,127.17,3.3572]
[1742153407877,27.06122325,127.22,127.17,3.3572]
[1742153408054,27.06122325,127.22,127.17,30.41842325]
[1742153408255,27.06122325,127.21,127.17,3.3572]
[1742153408771,27.06122325,127.2,127.17,3.3572]
[1742153408959,27.06122325,127.21,127.17,3.3572]
[1742153409575,27.06122325,127.21,127.17,9.6479]
[1742153410274,8.66,127.24,127.19,27.06122325]
[1742153410572,35.72122325,127.24,127.19,27.06122325]
[1742153410977,27.06122325,127.24,127.19,27.06122325]
[1742153411565,27.06122325,127.24,127.2,6.2893]
[1742153411771,27.06122325,127.25,127.2,6.2893]
[1742153412472,27.06122325,127.24,127.2,6.2893]
[1742153413379,27.06122325,127.25,127.2,33.35052325]
[1742153413561,27.06122325,127.26,127.21,27.06122325]
[1742153414682,24.93564886,127.27,127.21,33.34952325]
[1742153414886,27.06122325,127.26,127.21,33.34952325]
[1742153416289,6.286,127.27,127.21,33.34952325]
[1742153416454,33.34722325,127.27,127.22,33.34932325]
[1742153416653,0.28432314,127.29,127.23,37.42742325]
[1742153416877,27.06122325,127.27,127.23,10.3662]
[1742153417278,27.06122325,127.26,127.23,10.3662]
[1742153417470,27.06122325,127.27,127.23,10.3662]
[1742153418578,33.34732325,127.27,127.23,10.3662]
[1742153419580,27.06122325,127.26,127.23,3.6854]
[1742153419765,27.06122325,127.24,127.2,6.6808]